Cogmind - Beta 13 @@@ ROGUE MODE // 2024.03.18 @ 18:45:08 Player: Waste Result: Destroyed by JG-CX2(R) with Subdweller Laser Performance ------------- Evolutions (0) 0 Regions Visited (2) 400 Robots Destroyed (33) 165 Value Destroyed (658) 658 Prototype IDs (2) 40 Alien Tech Used (0) 0 Bonus (0) 0 TOTAL SCORE: 1263 Bonus ------- None Cogmind --------- Core Integrity 0/250 Matter 237/300 Energy 250/250 System Corruption 2% Temperature Cool (6) Movement Rolling (115) Ox1 Location -10/Subcaves Parts ------- > --- POWER (1) -------- Ion Engine > --- PROPULSION (2) --- Compact Wheel Compact Wheel > --- UTILITY (2) ------ High-capacity Storage Unit > --- WEAPON (2) ------- Rocket Launcher Rocket Launcher > --- INVENTORY (20) --- Ion Engine Ion Engine Light Treads Light Treads Light Treads Light Treads Light Treads Light Treads Light Treads Wheel Large Storage Unit Structural Scanner Medium Laser Assault Rifle Autogun Autogun Autogun Autogun Makeshift Shrapnel Gun Peak State ------------ > --- POWER ------------ Ion Engine > --- PROPULSION ------- Aluminum Leg Aluminum Leg > --- UTILITY ---------- Heat Sink High-capacity Storage Unit > --- WEAPON ----------- Autogun Autogun > --- INVENTORY -------- Ion Engine Light Ion Engine Light Treads Light Treads Aluminum Leg Wheel Compact Wheel Compact Wheel Large Storage Unit Structural Scanner Medium Laser Assault Rifle Autogun Autogun Rocket Launcher Rocket Launcher [Rating: 11] Favorites ----------- Power Ion Engine Engine Ion Engine Propulsion Aluminum Leg Leg Aluminum Leg Wheel Compact Wheel Utility Heat Sink Device Heat Sink Storage High-capacity Storage Unit Protection Light Armor Plating Weapon Autogun Energy Gun Medium Laser Ballistic Gun Autogun Launcher Rocket Launcher Build | -11 -10 -10 ------- Run | Yrd Mat Sub Slots Evolved . | . . . Power . | . . . Propulsion . | . . . Utility . | . . . Weapon . | . . . Parts Attached 19 | . 18 1 Power 2 | . 2 . Engine 2 | . 2 . Core . | . . . Reactor . | . . . Propulsion 6 | . 6 . Treads . | . . . Leg 4 | . 4 . Wheel 2 | . 2 . Hover . | . . . Flight . | . . . Utility 4 | . 4 . Device 1 | . 1 . Storage 2 | . 2 . Processor . | . . . Hackware . | . . . Protection 1 | . 1 . Artifact . | . . . Weapon 7 | . 6 1 Energy Gun 2 | . 2 . Energy Cannon . | . . . Ballistic Gun 3 | . 3 . Ballistic Cannon . | . . . Launcher 2 | . 1 1 Special Weapon . | . . . Impact Weapon . | . . . Slashing Weapon . | . . . Piercing Weapon . | . . . Special Melee Weapon . | . . . Unidentified Prototypes . | . . . Parts Lost 3 | . 2 1 Power . | . . . Propulsion 1 | . 1 . Utility 2 | . 1 1 Weapon . | . . . Highest Loss Streak 1 | . 1 1 To Critical Strikes . | . . . Average Slot Usage (%) 98 | . 99 91 Engine 14 | . 14 14 Leg 17 | . 19 . Wheel 10 | . 8 28 Device 10 | . 11 6 Storage 14 | . 14 14 Protection 2 | . 2 . Energy Gun 7 | . 8 . Ballistic Gun 17 | . 19 . Launcher 3 | . . 28 Naked Turns . | . . . Heaviest Build 54 | 12 53 54 Greatest Support 32 | 20 32 32 Greatest Overweight (x) 2 | . 2 1 Average Overweight (x) 1 | . 1 1 Largest Inventory Capacity 20 | . 20 20 Average Capacity 17 | . 17 20 Most Carried 20 | . 20 19 Average Carried 14 | . 14 18 Final Capacity 20 | 8 20 20 Final Carried 19 | 6 18 19 Class Distribution -------------------- 89% | Mutant 10% | Scavenger-Mutant Dominant Class ---------------- Mutant | -10/Materials Mutant | -10/Subcaves Resources | -11 -10 -10 ----------- Run | Yrd Mat Sub Matter Collected 787 | 200 501 86 Remotely . | . . . Salvage Created 1040 | . 978 62 Parts 57 | . 48 9 Haulers Intercepted 2 | . 2 . Recyclers Shooed 3 | . 3 . Parts Field Recycled . | . . . Retrieved Matter . | . . . Parts Self-Destructed 5 | . . 5 Prevented . | . . . Kills | -11 -10 -10 ------- Run | Yrd Mat Sub Combat Hostiles Destroyed 23 | . 18 5 Guns 18 | . 18 . AOE 5 | . . 5 Classes Destroyed 8 | . 7 1 Worker 2 | . 2 . Tunneler 1 | . 1 . Hauler 2 | . 2 . Recycler 2 | . 2 . Watcher 3 | . 3 . Swarmer 9 | . 5 4 Grunt 13 | . 13 . Subdweller 1 | . . 1 Best Kill Streak 4 | . 4 4 Combat Bots Only 4 | . 3 4 Max Kills in Single Turn 2 | . 1 2 Gunslinging . | . . . Exploded 2 | . . 2 Melee . | . . . Uniques/NPCs Destroyed . | . . . Combat | -11 -10 -10 -------- Run | Yrd Mat Sub Hostile Shots Fired 109 | . 93 16 Missed 28 | . 23 5 Damage Taken 1060 | . 734 326 Core 262 | . 147 115 Absorbed by Shields . | . . . Core Remaining (%) 100 | 100 . . Volleys Fired 90 | . 84 6 Largest 2 | . 2 2 Hottest 100 | . 100 66 Shots Fired 169 | . 160 9 Gun 159 | . 159 . Cannon . | . . . Launcher 10 | . 1 9 Special . | . . . Kinetic 84 | . 84 . Thermal 75 | . 75 . Explosive 10 | . 1 9 Electromagnetic . | . . . Robot Hit Streak 18 | . 18 2 Robot Miss Streak 4 | . 4 2 Penetration Max . | . . . Secondary Targets 1 | . 1 . Max Gunslinging Chain 1 | . 1 . Shots Hit Robots 107 | . 103 4 Core Hits 49 | . 43 6 Critical Kills . | . . . Critical Parts Destroyed . | . . . Critical Strikes 6 | . 6 . Burn 6 | . 6 . Melee Attacks . | . . . Impact . | . . . Slashing . | . . . Piercing . | . . . Sneak Attacks . | . . . Combat Hostiles . | . . . Follow-up Attacks . | . . . Damage Inflicted 1911 | . 1440 471 Guns 1430 | . 1430 . Cannons . | . . . Explosions 471 | . . 471 Melee . | . . . Ramming 10 | . 10 . Kinetic 762 | . 762 . Thermal 668 | . 668 . Explosive 471 | . . 471 Electromagnetic . | . . . Impact . | . . . Slashing . | . . . Piercing . | . . . Highest Corruption 2 | . 2 2 Average Corruption 2 | . 2 2 Corruption Purged . | . . . Corruption Blocked . | . . . Effects 22 | . 16 6 Message Errors 4 | . 3 1 Matter Fused 8 | . 4 4 Heat Flow Errors 3 | . 3 . Energy Discharges 3 | . 3 . Data Loss (minor) 2 | . 2 . Misfires 1 | . 1 . Alerts 1 | . . 1 Overload Shots . | . . . Overflow Damage 14 | . . 14 Projectiles . | . . . Explosions 14 | . . 14 Melee . | . . . Knockbacks . | . . . Impact . | . . . Kinetic . | . . . Secondary . | . . . Self-Inflicted Damage 125 | . . 125 Shots 4 | . . 4 Rammed . | . . . Targets Rammed 1 | . 1 . Kicked 1 | . 1 . Crushed . | . . . Highest Temperature 384 | . 384 . Average Temperature 157 | . 157 . Received Heat Transfer 390 | . 348 42 Effects 3 | . 3 . Interference 2 | . 2 . Damage (minor) 1 | . 1 . Siege Activations . | . . . Robots Corrupted . | . . . Combat Hostiles . | . . . Parts Fried . | . . . Impact Corruptions . | . . . Robots Melted . | . . . Combat Hostiles . | . . . Parts Melted 7 | . 7 . Heat Transferred 2405 | . 2405 . Parts Sabotaged . | . . . Parts Stolen . | . . . Parts Stripped . | . . . Power Chain Reactions . | . . . Alert | -11 -10 -10 ------- Run | Yrd Mat Sub Peak Influence 209 | . 209 . Initial . | . . . Average 78 | . 78 . Maximum Alert Level 1 | . 1 . Low Security (%) 99 | . 99 . Level 1 . | . . . Level 2 . | . . . Level 3 . | . . . Level 4 . | . . . Level 5 . | . . . High Security . | . . . Max Security . | . . . Squads Dispatched 5 | . 5 . Investigation 2 | . 2 . Extermination . | . . . Reinforcement 3 | . 3 . Assault . | . . . Garrison . | . . . Intercept . | . . . Searches Triggered . | . . . Construction Impeded . | . . . Haulers Reinforced . | . . . Active Scanning Responses . | . . . Cargo Convoy Interrupts . | . . . Stealth | -11 -10 -10 --------- Run | Yrd Mat Sub Distress Signals 1 | . 1 . Communications Jammed . | . . . Distress Signals . | . . . Times Spotted 35 | . 28 7 Peak Tracking Total 4 | . 3 4 Tactical Retreats 2 | . 1 1 Traps | -11 -10 -10 ------- Run | Yrd Mat Sub Traps Triggered 4 | . 3 1 Indirectly . | . . . Trap Hack Attempts . | . . . Triggered . | . . . Disarmed . | . . . Reprogrammed . | . . . Reused . | . . . Traps Extracted . | . . . Installed . | . . . Triggered . | . . . Machines | -11 -10 -10 ---------- Run | Yrd Mat Sub Machines Disabled . | . . . Max in Single Turn . | . . . Machines Repaired . | . . . Machines Dismantled . | . . . Machines Sabotaged . | . . . Overloaded Fab Kills . | . . . Hacking | -11 -10 -10 --------- Run | Yrd Mat Sub Machines Accessed 4 | . 4 . Terminals 4 | . 4 . Fabricators . | . . . Repair Stations . | . . . Recycling Units . | . . . Scanalyzers . | . . . Garrison Access . | . . . Total Hacks 11 | . 11 . Successful 5 | . 5 . Failed 5 | . 5 . Catastrophic 1 | . 1 . Database Lockouts 1 | . 1 . Manual 11 | . 11 . Terminals 11 | . 11 . Fabricators . | . . . Repair Stations . | . . . Recycling Units . | . . . Scanalyzers . | . . . Garrison Access . | . . . Terminal Hacks 4 | . 4 . Robot Analysis 2 | . 2 . Prototype ID Bank 1 | . 1 . Locate Traps 1 | . 1 . Fabricator Hacks . | . . . Repair Station Hacks . | . . . Recycling Unit Hacks . | . . . Scanalyzer . | . . . Garrison Access Hacks . | . . . Unauthorized Hacks 1 | . 1 . Terminals 1 | . 1 . Botnet 1 | . 1 . Fabricators . | . . . Repair Stations . | . . . Recycling Units . | . . . Scanalyzers . | . . . Garrison Access . | . . . Data Cores Recovered . | . . . Used . | . . . Hacking Detections 3 | . 3 . Full Trace Events . | . . . Feedback Events . | . . . Feedback Blocked . | . . . Robot Schematics Acquired . | . . . Robots Built . | . . . Authchips . | . . . Time . | . . . Total Robot Build Rating . | . . . Part Schematics Acquired . | . . . Parts Built . | . . . Authchips . | . . . Time . | . . . Total Part Build Rating . | . . . Parts Repaired . | . . . Time . | . . . Parts Recycled . | . . . Recycled Matter . | . . . Retrieved Matter . | . . . Retrieved Components . | . . . Parts Scanalyzed . | . . . Part Schematics Acquired . | . . . Parts Damaged . | . . . Bothacking | -11 -10 -10 ------------ Run | Yrd Mat Sub Used RIF Installer . | . . . Robots Hacked . | . . . Non-combat . | . . . Combat . | . . . Robot Hacks Applied . | . . . Relay Couplers Released . | . . . Fabnet Peak Effective % . | . . . Robots Rewired . | . . . Allies Hacked . | . . . Hacks Repelled . | . . . Allies | -11 -10 -10 -------- Run | Yrd Mat Sub Total Allies . | . . . Largest Group . | . . . Highest-Rated Group . | . . . Highest-Rated Ally . | . . . Total Orders . | . . . Ally Attacks . | . . . Total Damage . | . . . Kills . | . . . Allies Corrupted . | . . . Allies Melted . | . . . Intel | -11 -10 -10 ------- Run | Yrd Mat Sub Robot Analysis Total 2 | . 2 . Derelict Logs Recovered 1 | . . 1 Drone Launches . | . . . Drone Recoveries . | . . . Exploration | -11 -10 -10 ------------- Run | Yrd Mat Sub Turns Passed 2595 | . 2311 284 Spaces Moved 950 | 1 718 231 Core . | . . . Treads . | . . . Legs 643 | 1 642 . Wheels 307 | . 76 231 Hover . | . . . Flight . | . . . Fastest Speed 115 | 120 115 115 Average Speed 170 | 120 188 115 Slowest Speed 260 | 120 260 115 Overloaded Moves . | . . . Propulsion Burnouts . | . . . Robots Hopped . | . . . Cave-ins Triggered . | . . . Exploration Rate (%) 39 | 2 98 17 Regions Visited 2 Branch Regions 1 Pre-discovered Areas . | . . . Known Exits Taken . | . . . Unknown Exits Taken 2 | 1 1 . Scrap Searched 3 | . . 3 Spaces Dug 7 | . . 7 Terrain Destroyed 68 | . 1 67 Melee . | . . . Projectile . | . . . AOE 68 | . 1 67 Terrain Rammed . | . . . Walls Destroyed . | . . . Machines Disabled . | . . . Actions | -11 -10 -10 --------- Run | Yrd Mat Sub Total 1768 | . 1529 239 Wait 685 | . 685 . Move 948 | . 717 231 Hop . | . . . Pick Up 14 | . 13 1 Fast Attach 3 | . 3 . Attach 4 | . 4 . Detach 1 | . 1 . Swap 12 | . 11 1 Drop 10 | . 10 . Fire 90 | . 84 6 Melee . | . . . Ram . | . . . Kick 1 | . 1 . Crush . | . . . Escape Stasis . | . . . Rewire . | . . . Trap . | . . . Miscellaneous . | . . . Route ------- -11/Scrapyard -10/Materials (discovered 5 exits: [*Mat x3] / [*Min] / [*Sub]) -10/Subcaves (discovered 1 exit: [*Rec]) History --------- Turn | Location | Event 1 | -11/Scrapyard | Discovered new exit (range 0) 1 | -11/Scrapyard | Entered Materials 265 | -10/Materials | Discovered new exit (range 16) 309 | -10/Materials | Build established: Mutant 627 | -10/Materials | Discovered new exit (range 9) 1085 | -10/Materials | Discovered new exit (range 4) 1543 | -10/Materials | Discovered new exit (range 15) 1568 | -10/Materials | Core integrity fell below 50% 1620 | -10/Materials | Central database locked down 2303 | -10/Materials | Discovered new exit (range 8) 2312 | -10/Materials | Entered Subcaves 2362 | -10/Subcaves | Learned Materials stockpile data 2404 | -10/Subcaves | Discovered new exit (range 16) 2411 | -10/Subcaves | Core integrity fell below 20% 2596 | -10/Subcaves | Destroyed by JG-CX2(R) with Subdweller Laser Last Messages --------------- 02404_ EXIT=FOUND 02408_ Destroyed Flight Unit. 02410_ S-10 Pest destroyed. 02412_ Destroyed Flight Unit. 02412_ S-10 Pest destroyed. 02417_ Lgt. Ion Engine fries itself beyond repair. 02422_ Flight Unit fries itself beyond repair. 02426_ Lgt. Ion Engine fries itself beyond repair. 02439_ Heat Sink destroyed. 02439_ FC-Y0I(R) destroyed. 02441_ The unstable cave ceiling collapses. 02446_ Acquired 49 matter. 02449_ R>YRH RNRZFE ZG 02581_ System corrupted: Matter fused (-5). Map ----- +----------------------------------------------------+ | ???????????????## ##?###????## | | ???????????????# ##??????????## # | | ???????????????#### #????????????## ### | | ??????????????????## ####????????????## ##?? | | ???????????????????# ##??????????????## #?? | | ???????????????????# ##???????????????# ## #?? | | ???????????????????###????????????????## ### ##? | | ??????????????????????????????????????# ## #? | | ??????????????????????????????????????## ### ##? | | ???????????????????????????????????????# ## #?? | | ??????????????????????????????????????## #?? | | ??????????????????????????????????????# ### | | ??????????????????????????????????????# # ## # ^ | | ???????????????????????????????????###### ^ | | ??????????????????????????????????## #### | | ??????????????????????????????????# #?## # | | ??????????????????????????????????? ##?# ### | | ????????????????########?????????????# ### ## | | ????????????????# ?????????????# # | | ????????????????# ?????????????# ### | | ??????????????# # #???????????## #### | | ??????????????# R ???????????# #### | | ??????????????# ???????????# ## | | ???????????????# ##???####### ## | | ????????????????# ##### ### | | ????????????????????# @ ### # | | ????????????????????# ### ## | | ????????????????????### ## # ## ### ##? | | ??????????????????????##?###############?## #?? | | ??????????????????????????????????????????## ##?? | | ???????????????????????????????????????????####??? | | ?????????????????????????????????????????????????? | | ?????????????????????????????????????????????????? | | ?????????????????????????????????????????????????? | | ?????????????????????????????????????????????????? | | ?????????????????????????????????????????????????? | | ?????????????????????????????????????????????????? | | ?????????????????????????????????????????????????? | | ?????????????????????????????????????????????????? | | ?????????????????????????????????????????????????? | | ?????????????????????????????????????????????????? | | ?????????????????????????????????????????????????? | | ?????????????????????????????????????????????????? | | ?????????????????????????????????????????????????? | | ?????????????????????????????????????????????????? | | | | | | | | | | | +----------------------------------------------------+ Best States ------------- Heat Dissipation 35 Energy Generation 10 Energy Capacity 250 Matter Stores 300 Matter Capacity 300 Sight Range 16 Terrain Scan Density 10 Armor Coverage 150 Evasion (%) 55 Item Schematics ----------------- None Robot Schematics ------------------ None Fabricated ------------ Nothing Alien Tech Used ----------------- None Achievements -------------- None Challenges ------------ None Game ------ Seed WeldingMediumTerrabomb Manual? 0 Play Time 00:09:49 Cumulative 165.0 hours Start 2024.03.18 @ 18:36:28 End 2024.03.18 @ 18:45:08 Sessions 1 Manual Loads 0 Difficulty Rogue Special Mode None Game No. 228 Rogue 228 Adventurer 0 Explorer 0 Win Type - Total 3 Types 2/0/0/1/0/0/0/0/0 Lore% 63 Gallery% 72 Achievement% 65 Wizard Run 0 Options --------- Layout 0 ASCII 0 Keyboard 0 Movement Numpad Keybinds 0 Fullscreen 1 Font 18/SmallcapsGlow Map View 76x50 Zoom Use 0% Tactical HUD 1 Map Filters NONE Filters NONE Steam 1 RUN: 7fe410a3-829f-485d-8d56-1a198d1ff970